[Event "Arona Festival 2024"]
[Site "Arona Tenerife"]
[Date "2024.06.25"]
[Round "6.1"]
[White "Gorshtein, Ido"]
[Black "Paichadze, Luka"]
[Result "1-0"]
[ECO "E11"]
[WhiteElo "2563"]
[BlackElo "2504"]
[Annotator "TA"]
[PlyCount "101"]
[EventDate "2024.06.20"]
[EventType "swiss"]
[EventCountry "ESP"]
[SourceTitle "playchess.com"]
[Source "ChessBase"]
[SourceQuality "1"]
[TimeControl "5400+30"]

{[%evp 26,101,66,66,95,0,1,-5,48,43,4,20,115,-41,125,152,182,181,172,180,179,189,199,207,181,81,80,68,91,77,82,77,91,97,93,91,82,15,19,17,225,148,151,142,151,152,143,152,134,144,143,145,167,135,160,164,7367,6214,6079,6540,29970,29971,29972,29973,29973,29974,29975,29976,29975,29977,29981,29980,29979,29980,29984,29985,29986,29987]} 1. d4 {[%emt 0:01:41]} Nf6 {[%emt 0:00:11]} 2. c4 {[%emt 0:00:05]} e6 {[%emt 0:00:04]} 3. Nf3 {[%emt 0:00:05]} Bb4+ {[%emt 0:00:26]} 4. Nbd2 {[%emt 0:00:06]} d5 {[%emt 0:01:05]} 5. Qa4+ {[%emt 0:00:09]} Nc6 {[%emt 0:00:04]} 6. e3 {[%emt 0:00:08] E11: Bogo-Indian.} a5 {[%emt 0:05:33]} 7. a3 {[%emt 0:00:09]} Be7 {[%emt 0:01:03]} 8. b4 {[%emt 0:01:09]} dxc4 {[%emt 0:03:26]} 9. b5 {[%emt 0:00:09]} Na7 {[%emt 0:06:11]} 10. Nxc4 {[%emt 0:02:37]} Bd7 $146 {[%emt 0:04:38]} ({Predecessor:} 10... O-O 11. Bd3 b6 12. Nce5 Bb7 13. O-O Be4 14. Bd2 Bxd3 15. Nxd3 Ne4 16. Qb3 Qd7 {½-½ Diaz,H (2262)-Nekhaev,A (2453) olm22 sf05 email 2020 [3]}) 11. Nce5 {[%emt 0:01:19]} Nc8 {[%emt 0:04:08]} 12. Bd3 {[%emt 0:02:34]} O-O {[%emt 0:00:17]} 13. Bb2 {[%emt 0:02:50]} Be8 {[%emt 0:02:29]} 14. Qc2 {[%emt 0:04:42]} Na7 {[%emt 0:03:53]} 15. a4 {[%emt 0:13:08]} ({Better is} 15. Ng5 $1 $16) 15... c6 $11 {[%emt 0:02:38]} 16. g4 {[%emt 0:16:30]} cxb5 {[%emt 0:19:23]} (16... g6 $11) 17. g5 $14 {[%emt 0:00:58]} Rc8 {[%emt 0:00:26]} 18. Qb1 $1 {[%emt 0:01:23]} Nd5 {[%emt 0:00:24]} (18... Bb4+ $11 19. Kf1 Nh5) 19. Bxh7+ $16 {[%emt 0:09:50]} Kh8 {[%emt 0:00:02]} 20. Rg1 $1 {[%emt 0:02:53]} g6 {[%emt 0:06:47]} 21. Qe4 $1 {[%emt 0:06:39]} Kxh7 {[%emt 0:01:39]} 22. Qh4+ {[%emt 0:00:13]} Kg8 {[%emt 0:00:22]} 23. Rg3 $1 {[%emt 0:02:09]} Nf6 {[%emt 0:00:44]} (23... bxa4 24. Rh3 Bb4+ 25. Kd1 Nxe3+ 26. fxe3) 24. gxf6 {[%emt 0:02:58]} Bxf6 {[%emt 0:00:01] [#]} 25. Ng5 {[%emt 0:01:14]} (25. Qh6 $1 $18 {Hoping for Rh3.} Bg7 (25... bxa4 $2 26. Rh3 $18) 26. Qh3) 25... Bxg5 $16 {[%emt 0:02:39]} 26. Rxg5 {[%emt 0:00:07]} Nc6 {[%emt 0:13:13]} 27. Nxf7 {[%emt 0:09:53]} Rxf7 {[%emt 0:15:48]} (27... Bxf7 $2 28. d5 (28. axb5 $2 Nb4 $19) 28... e5 29. dxc6 $18) 28. Rxg6+ {[%emt 0:00:12]} Rg7 {[%emt 0:00:11]} 29. Rxg7+ {[%emt 0:00:14]} Kxg7 {[%emt 0:00:01]} 30. d5+ {[%emt 0:00:09]} e5 {[%emt 0:00:10] [#]} 31. Qg3+ {[%emt 0:01:14]} ({White should try} 31. Qg4+ $1 $16 Kf8 32. Qf5+ (32. dxc6 Rxc6 33. Qf5+ Qf6 $16) 32... Bf7 33. dxc6 Rxc6 34. Qxe5 (34. axb5 Rg6 $14)) 31... Kf7 $11 {[%emt 0:02:41]} 32. dxc6 {[%emt 0:01:47]} Bxc6 $2 {[%emt 0:00:42]} (32... Rxc6 $11 {and Black has nothing to worry.} 33. Qxe5 (33. Bxe5 Rg6 $11) 33... Rg6) 33. Qxe5 {[%emt 0:00:46]} ({Don't take} 33. Bxe5 $6 Qf8) 33... Qd5 {[%emt 0:04:09]} 34. Qf6+ {[%emt 0:02:49]} (34. Qxd5+ Bxd5 35. axb5 Rc2 $16) 34... Ke8 {[%emt 0:00:01]} 35. Qg6+ {[%emt 0:00:24]} Qf7 {[%emt 0:00:52]} 36. Qxf7+ {[%emt 0:00:36]} Kxf7 {[%emt 0:00:01]} 37. axb5 {[%emt 0:00:09]} Bxb5 {[%emt 0:01:49]} 38. Rxa5 {[%emt 0:00:14]} Ba6 {[%emt 0:00:05]} 39. Rd5 {[%emt 0:01:02]} Rc2 {[%emt 0:00:26]} 40. Rd2 {[%emt 0:00:04]} Rxd2 $2 {[%emt 0:01:00]} (40... Rc6 41. f3 Rc5) 41. Kxd2 $18 {[%emt 0:00:02]} Kg6 {[%emt 0:00:29]} 42. e4 {[%emt 0:00:25]} Kg5 {[%emt 0:00:26]} 43. Ke3 {[%emt 0:00:08]} Bb5 {[%emt 0:00:24]} 44. f4+ {[%emt 0:01:46]} Kg4 {[%emt 0:00:01]} 45. f5 {[%emt 0:00:18]} Bc6 {[%emt 0:00:40]} 46. h3+ {[%emt 0:02:08]} Kg5 {[%emt 0:00:11]} 47. Kf3 {[%emt 0:00:13]} b5 {[%emt 0:00:25]} 48. Bc3 {[%emt 0:00:26]} Be8 {[%emt 0:00:58]} 49. Bd2+ {[%emt 0:00:34]} Kh4 {[%emt 0:00:08]} 50. Kf4 {[%emt 0:00:38]} Kxh3 {[%emt 0:00:25]} 51. e5 {[%emt 0:00:47]} 1-0

[Event "Arona Festival 2024"]
[Site "Arona Tenerife"]
[Date "2024.06.25"]
[Round "6.2"]
[White "Pichot, Alan"]
[Black "Sosa, Tomas"]
[Result "1/2-1/2"]
[ECO "C84"]
[WhiteElo "2640"]
[BlackElo "2535"]
[Annotator "TA"]
[PlyCount "99"]
[EventDate "2024.06.20"]
[EventType "swiss"]
[EventCountry "ESP"]
[SourceTitle "playchess.com"]
[Source "ChessBase"]
[SourceQuality "1"]
[TimeControl "5400+30"]

{[%evp 13,99,15,15,6,37,18,23,14,21,24,29,0,11,18,0,26,25,45,27,9,41,46,56,45,32,50,91,92,150,140,416,267,296,300,359,338,401,400,397,402,393,298,299,285,295,187,179,73,65,65,65,36,43,0,0,0,0,0,0,0,0,0,0,0,0,0,0,0,0,0,0,0,0,0,0,0,0,0,0,0,0,0,0,0,0,0,0,0]} 1. e4 {[%emt 0:00:11]} e5 {[%emt 0:00:59]} 2. Nf3 {[%emt 0:00:10]} Nc6 {[%emt 0:00:05]} 3. Bb5 {[%emt 0:00:12]} a6 {[%emt 0:00:06]} 4. Ba4 {[%emt 0:00:06]} Nf6 {[%emt 0:00:06]} 5. O-O {[%emt 0:00:13]} Be7 {[%emt 0:00:20]} 6. d3 {[%emt 0:00:20]} b5 {[%emt 0:02:58]} 7. Bb3 {[%emt 0:00:12]} d6 {[%emt 0:06:23][%cal Bd7d6,Bd6d5][%mdl 32]} 8. a3 {[%emt 0:01:35]} Bg4 {[%emt 0:10:28]} 9. Be3 {[%emt 0:03:48] Against Nd4} d5 {[%emt 0:02:15]} 10. Nbd2 {[%emt 0:19:17] White has an edge.} O-O {[%emt 0:07:19]} 11. h3 {[%emt 0:00:41]} Bh5 {[%emt 0:01:20]} 12. g4 {[%emt 0:02:28]} Bg6 {[%emt 0:05:28][%cal Rd5e4]} 13. Nh4 {[%emt 0:04:38]} dxe4 {[%emt 0:24:07]} 14. dxe4 {[%emt 0:03:31]} Nd4 {[%emt 0:03:02]} 15. Nxg6 {[%emt 0:01:33]} hxg6 {[%emt 0:00:05]} 16. Ba2 {[%emt 0:01:30]} c5 {[%emt 0:01:52]} 17. c3 {[%emt 0:04:54]} Nc6 {[%emt 0:00:29]} 18. g5 $1 {[%emt 0:06:09]} Nh5 {[%emt 0:00:22]} 19. Bd5 {[%emt 0:06:00]} Rc8 {[%emt 0:01:55]} 20. Qg4 {[%emt 0:03:37]} Kh7 {[%emt 0:02:36]} (20... Qc7 $142) 21. Nf3 $16 {[%emt 0:05:55] White has more active pieces.} f5 $2 {[%emt 0:12:05][%mdl 8192]} (21... Bd6 $16 {is a better defense.} 22. Nh4 Ne7) 22. gxf6 {[%emt 0:04:42]} Bxf6 {[%emt 0:00:31]} 23. Rad1 {[%emt 0:01:34]} (23. Bxc5 Ne7 $16) 23... Qe7 {[%emt 0:03:10]} 24. Kh1 {[%emt 0:01:03]} Qe8 {[%emt 0:02:30]} 25. Be6 {[%emt 0:08:40] A strong pair of Bishops.} (25. Bxc5 Ne7 $18) 25... Rc7 {[%emt 0:00:16] Repels Bd7} 26. Rg1 {[%emt 0:04:01]} ({But not} 26. Bxc5 Be7 $18) 26... Ne7 {[%emt 0:06:41]} 27. Rd7 {[%emt 0:03:40]} Rxd7 {[%emt 0:02:16]} 28. Bxd7 {[%emt 0:00:05]} Qa8 {[%emt 0:00:06]} 29. Bxc5 {[%emt 0:02:07]} Nf4 {[%emt 0:00:07] [#]} 30. Bxe7 (30. Ng5+ $1 $18 Bxg5 31. Qxg5) 30... Bxe7 {[%emt 0:00:02] [#]} 31. Bf5 $1 {[%emt 0:04:38]} Rf6 {[%emt 0:00:13]} 32. Kh2 {[%emt 0:07:01]} Qa7 {[%emt 0:02:34]} 33. Qh4+ {[%emt 0:01:07]} (33. Nxe5 $5 Qxf2+ 34. Kh1 $14) 33... Kg8 {[%emt 0:00:03] The position is equal.} 34. Ng5 $1 {[%emt 0:00:24]} Nh5 $1 {[%emt 0:00:05][%cal Of6d6]} ({Worse is} 34... gxf5 35. Qh7+ Kf8 36. Qh8#) 35. Rg2 {[%emt 0:01:08][%cal Oh2g1]} Qb6 $1 {[%emt 0:00:47]} 36. b4 {[%emt 0:00:42]} (36. Qg4 $5) 36... Qa7 {[%emt 0:01:26]} 37. Kg1 {[%emt 0:00:10][%cal Of5g6] Hoping for Bxg6!} Qc7 $1 {[%emt 0:02:25][%cal Oc7c3]} 38. Bxg6 {[%emt 0:00:54]} Rxg6 {[%emt 0:00:05]} 39. Qxh5 {[%emt 0:00:03] Qh7+ would kill now.} Rxg5 {[%emt 0:00:06]} 40. Rxg5 {[%emt 0:00:08]} Bxg5 {[%emt 0:00:03]} 41. Qxg5 {[%emt 0:00:04] Strongly threatening Qg3.} Qxc3 $11 {[%emt 0:00:05][%mdl 4096] Endgame. KQ-KQ} 42. Qd8+ {[%emt 0:01:45]} Kh7 {[%emt 0:00:03]} 43. Qh4+ {[%emt 0:00:18]} Kg8 {[%emt 0:00:04]} 44. Qg4 {[%emt 0:00:42]} Qxa3 {[%emt 0:00:11]} 45. Qe6+ {[%emt 0:00:10]} Kh7 {[%emt 0:00:13]} 46. Qxe5 {[%emt 0:00:28]} Qxb4 {[%emt 0:00:11]} 47. Qf5+ {[%emt 0:00:26]} Kg8 {[%emt 0:00:51]} 48. Qe6+ {[%emt 0:00:52]} Kh7 {[%emt 0:00:06]} 49. Qf5+ {[%emt 0:00:25]} Kg8 {[%emt 0:00:01]} 50. Qe6+ {[%emt 0:00:35] Blacks defense is rewarded with a draw.   Weighted Error Value: White=0.20 (precise) /Black=0.20 (precise) .  Loses game:     	---       	Black=1      Mistake:       	White=1     	Black=1      Inaccurate:     	White=5     	Black=3      OK:         	White=10    	Black=20     Best:        	White=1     	Black=4      Strong:       	White=2     	Black=3      Brilliant:      	White=1     	---} 1/2-1/2

[Event "Arona Festival 2024"]
[Site "Arona Tenerife"]
[Date "2024.06.25"]
[Round "6.3"]
[White "Xue, Haowen"]
[Black "Kazakouski, Valery"]
[Result "1-0"]
[ECO "A13"]
[WhiteElo "2452"]
[BlackElo "2603"]
[Annotator "TA"]
[PlyCount "125"]
[EventDate "2024.06.20"]
[EventType "swiss"]
[EventCountry "ESP"]
[SourceTitle "playchess.com"]
[Source "ChessBase"]
[SourceQuality "1"]
[TimeControl "5400+30"]

{[%evp 58,125,-19,-36,-27,-53,-34,-62,-37,-33,-32,-40,-48,-27,-33,-37,-45,-39,0,0,72,68,64,11,12,19,112,105,112,45,50,23,53,48,198,207,197,201,295,266,264,285,321,329,321,327,325,333,380,382,433,426,507,371,852,700,845,832,6690,2126,29953,29952,29974,29949,29953,29958,29946,29944,12837,10985]} 1. c4 {[%emt 0:00:03]} e6 {[%emt 0:00:18]} 2. Nf3 {[%emt 0:00:07]} Nf6 {[%emt 0:00:11]} 3. g3 {[%emt 0:00:11]} d5 {[%emt 0:00:08]} 4. Bg2 {[%emt 0:00:04]} d4 {[%emt 0:00:38]} 5. O-O {[%emt 0:00:26]} c5 {[%emt 0:00:12]} 6. e3 {[%emt 0:02:08]} Nc6 {[%emt 0:00:10] A13: English Opening: 1...e6.} 7. d3 {[%emt 0:00:47]} Bd6 {[%emt 0:00:27]} 8. exd4 {[%emt 0:00:19]} cxd4 {[%emt 0:00:10]} 9. Bg5 {[%emt 0:04:34]} h6 {[%emt 0:01:30]} 10. Bxf6 {[%emt 0:00:06]} Qxf6 {[%emt 0:00:07]} 11. Nbd2 {[%emt 0:00:30]} Qe7 {[%emt 0:00:36]} 12. Re1 {[%emt 0:02:04]} O-O {[%emt 0:03:42]} 13. Nb3 {[%emt 0:07:30]} Qf6 {[%emt 0:06:41]} 14. c5 {[%emt 0:01:39]} Bc7 {[%emt 0:01:21]} 15. Rc1 {[%emt 0:03:42]} Rd8 {[%emt 0:14:42]} 16. a3 {[%emt 0:08:56]} a5 {[%emt 0:16:51]} 17. Nbd2 {[%emt 0:03:46]} Qe7 {[%emt 0:00:29]} 18. Ne4 {[%emt 0:04:47]} Bd7 {[%emt 0:01:31]} 19. Rc4 {[%emt 0:08:14]} Be8 {[%emt 0:06:47]} 20. Qe2 $146 {[%emt 0:11:08]} ({Predecessor:} 20. Ned2 a4 21. Ne4 Na5 22. Rxd4 Nb3 23. Rxd8 Rxd8 24. d4 Ba5 25. Re3 Nxc5 26. Nxc5 Qxc5 27. b4 axb3 28. Rxb3 {0-1 Shevchenko,K (2649)-Salem,A (2677) MrDodgy Online Inv Gp-B 3rd blitz 2022 (11)}) 20... Ra6 {[%emt 0:04:11]} 21. Rec1 {[%emt 0:07:00]} Bb8 {[%emt 0:05:45]} 22. Qc2 {[%emt 0:09:31]} Kh7 {[%emt 0:06:05]} 23. Qd1 {[%emt 0:03:01]} f5 {[%emt 0:01:16]} 24. Ned2 {[%emt 0:02:36]} e5 {[%emt 0:00:57]} 25. Nh4 {[%emt 0:03:24]} g6 {[%emt 0:02:14]} 26. Qe1 {[%emt 0:01:41]} Bf7 {[%emt 0:04:43]} 27. Ra4 {[%emt 0:00:10]} Bd5 {[%emt 0:01:20]} 28. Bxd5 {[%emt 0:01:45]} Rxd5 {[%emt 0:00:07]} 29. Rac4 {[%emt 0:00:33]} Na7 {[%emt 0:02:42]} 30. Nb3 {[%emt 0:03:01]} Qd8 {[%emt 0:01:11]} 31. Qd1 {[%emt 0:01:47]} Re6 {[%emt 0:00:51]} 32. c6 {[%emt 0:01:17]} Rxc6 {[%emt 0:00:54]} (32... Nxc6 33. Nc5 Rf6 (33... Re7 34. Nxb7 Rxb7 35. Rxc6 $14) 34. Nxb7 $11) 33. Rxc6 {[%emt 0:00:15]} Nxc6 {[%emt 0:00:59]} 34. Nc5 $1 {[%emt 0:00:25]} Qb6 {[%emt 0:04:04]} 35. b4 {[%emt 0:02:17]} Ne7 {[%emt 0:04:12]} (35... axb4 36. Qb3 Ne7 (36... Rxc5 37. Qf7+ Kh8 38. Nxg6#) 37. Nd7 $16) 36. bxa5 {[%emt 0:02:21]} Qxa5 {[%emt 0:02:34]} 37. Qb3 {[%emt 0:01:55]} Qc7 {[%emt 0:00:26]} (37... Rxc5 38. Qf7+ Kh8 39. Qf8+ (39. Nxg6+ Nxg6 40. Qf6+ Kh7 $11) 39... Kh7 40. Qxe7+ Kg8 41. Rxc5 (41. Qxc5 Qxc5 42. Rxc5 Kf7 $18) (41. Qxc5 Qxc5 42. Rxc5 Bd6 $18)) 38. Rc2 {[%emt 0:01:44]} Qd6 {[%emt 0:02:34]} (38... Rxc5 $11 {keeps the balance.} 39. Qf7+ Kh8 40. Rxc5 (40. Qf8+ Kh7 $11) 40... Qxc5) 39. Nxb7 $16 {[%emt 0:00:43]} Qf6 {[%emt 0:00:06] [#]} 40. Rc8 {[%emt 0:01:24]} (40. Rc5 $1 $14 Rd7 41. Ra5) 40... Nxc8 $11 {[%emt 0:02:10]} 41. Qxd5 {[%emt 0:00:02]} Nb6 {[%emt 0:00:24]} (41... Ne7 $1 $11 42. Qd7 e4) 42. Qb3 $16 {[%emt 0:01:18]} e4 {[%emt 0:00:26]} 43. dxe4 {[%emt 0:00:35]} (43. Nc5 $16 g5 44. Ng2) 43... fxe4 $14 {[%emt 0:00:07]} 44. Nc5 {[%emt 0:00:06]} e3 $1 {[%emt 0:03:35]} 45. fxe3 {[%emt 0:01:14]} Ba7 {[%emt 0:00:57]} (45... dxe3 $14 46. Ne4 Qe7) 46. Ne4 $18 {[%emt 0:00:41]} Qe7 {[%emt 0:00:44]} 47. exd4 $1 {[%emt 0:00:07]} Nd7 {[%emt 0:01:14]} (47... Kg7 $142) 48. Qd5 $18 {[%emt 0:00:21]} Ne5 {[%emt 0:00:35]} 49. Nf2 {[%emt 0:00:35]} Nd7 {[%emt 0:00:35]} 50. Nf3 {[%emt 0:01:02]} Nf6 {[%emt 0:00:01]} 51. Qc6 {[%emt 0:00:26]} Kg7 {[%emt 0:00:12]} 52. Kg2 {[%emt 0:00:05]} h5 {[%emt 0:01:10]} 53. Ng5 {[%emt 0:01:38]} Kh6 {[%emt 0:00:33]} 54. Ne6 {[%emt 0:00:16]} Bb8 {[%emt 0:00:32]} 55. Qc8 {[%emt 0:01:07]} Bd6 $2 {[%emt 0:00:11]} (55... g5 56. Nxg5 Bxg3) 56. Qh8+ $18 {[%emt 0:00:29]} Nh7 {[%emt 0:00:02]} 57. d5 {[%emt 0:00:16]} Bxa3 {[%emt 0:00:36]} 58. Ne4 {[%emt 0:00:32]} (58. g4 $142 g5 59. gxh5 Kxh5 60. Qg8) 58... Qb7 {[%emt 0:00:58]} 59. N6g5 {[%emt 0:00:39]} Bf8 {[%emt 0:00:35]} 60. Qxh7+ {[%emt 0:00:22]} Qxh7 {[%emt 0:00:02]} 61. Nxh7 {[%emt 0:00:07]} Kxh7 {[%emt 0:00:05]} 62. d6 {[%emt 0:00:35]} Kg7 {[%emt 0:00:18]} 63. d7 {[%emt 0:00:07]} 1-0

[Event "Arona Festival 2024"]
[Site "Arona Tenerife"]
[Date "2024.06.25"]
[Round "6.4"]
[White "Gupta, Abhijeet"]
[Black "David, Alberto"]
[Result "0-1"]
[ECO "E12"]
[WhiteElo "2589"]
[BlackElo "2502"]
[Annotator "TA"]
[PlyCount "63"]
[EventDate "2024.06.20"]
[EventType "swiss"]
[EventCountry "ESP"]
[SourceTitle "playchess.com"]
[Source "ChessBase"]
[SourceQuality "1"]
[TimeControl "5400+30"]

{[%evp 14,63,14,15,24,12,0,8,10,-13,15,-5,0,0,0,0,0,0,47,22,23,-67,20,2,133,38,28,29,29,25,47,36,20,20,21,27,26,0,0,-266,-256,-994,-972,-1232,-1232,-1225,-1175,-1080,-1065,-1035,-1036,-1025]} 1. d4 {[%emt 0:00:04]} Nf6 {[%emt 0:00:07]} 2. c4 {[%emt 0:00:07]} e6 {[%emt 0:00:08]} 3. Nf3 {[%emt 0:00:06]} b6 {[%emt 0:00:30]} 4. a3 {[%emt 0:00:15]} Bb7 {[%emt 0:00:36]} 5. Nc3 {[%emt 0:00:17]} d5 {[%emt 0:00:09]} 6. cxd5 {[%emt 0:00:05]} Nxd5 {[%emt 0:00:05]} 7. e3 {[%emt 0:00:07]} g6 {[%emt 0:19:01]} 8. h4 {[%emt 0:00:43][%cal Bh2h4,Bh4h5][%mdl 32]} Nd7 {[%emt 0:05:09]} 9. h5 {[%emt 0:01:53] With the idea hxg6.} Nxc3 {[%emt 0:09:34]} 10. bxc3 {[%emt 0:00:04]} g5 {[%emt 0:02:02] [#] The position is equal.} 11. e4 $1 {[%emt 0:15:45]} Rg8 {[%emt 0:15:17]} (11... g4 12. Nd2) 12. Bd3 {[%emt 0:05:09]} g4 {[%emt 0:02:04]} 13. Ng1 {[%emt 0:06:08]} Qf6 {[%emt 0:19:54]} 14. Ne2 {[%emt 0:11:43]} O-O-O {[%emt 0:00:05][%cal Od7c5]} 15. Qc2 {[%emt 0:01:46]} Bd6 {[%emt 0:08:22]} (15... g3 $11 16. Nxg3 (16. fxg3 e5 $14) 16... Bd6) 16. a4 $14 {[%emt 0:19:45] Black should prevent a5.} a5 {[%emt 0:02:29]} 17. Bb5 {[%emt 0:07:02]} ({White should try} 17. Be3 $11) 17... g3 {[%emt 0:02:36] Black is more active.} (17... Qe7 $1 $15) 18. f3 $11 {[%emt 0:00:54]} Rg4 {[%emt 0:07:47]} 19. Bxd7+ {[%emt 0:07:46]} ({White should play} 19. fxg4 $16 Qf2+ 20. Kd1 Qxg2 21. Rg1) 19... Rxd7 $14 {[%emt 0:00:04]} 20. e5 {[%emt 0:05:06]} Bxe5 {[%emt 0:00:28]} 21. dxe5 {[%emt 0:00:05]} (21. fxg4 $2 Bxg2 22. Be3 Bxh1 23. dxe5 Qf3 $19 (23... Qxe5 24. Bd4 $11)) 21... Rh4 {[%emt 0:00:20]} 22. Rxh4 {[%emt 0:03:53]} (22. exf6 $2 {loses.} Rxh1+ $19) 22... Qxh4 {[%emt 0:00:04]} 23. Be3 $1 {[%emt 0:00:05] next h6 is good for White.} (23. Qxh7 $2 {is a self mate.} Qh1+) 23... Qh1+ {[%emt 0:04:10]} 24. Ng1 {[%emt 0:00:05] aiming for h6.} Qxh5 {[%emt 0:00:03]} 25. f4 {[%emt 0:08:52]} Qh1 $36 {[%emt 0:00:04][%mdl 2048] Black is more active.} 26. Kf1 {[%emt 0:01:42][%mdl 8192]} (26. Ra2 $1 $11) 26... h5 $1 $19 {[%emt 0:00:03]} ({Stronger than} 26... Ba6+ 27. c4 $11) 27. c4 $2 {[%emt 0:01:36] [#]} (27. Qe2) 27... h4 $1 {[%emt 0:00:11][%cal Oh4h3] Black is clearly winning.} 28. Rc1 {[%emt 0:01:00] [#]} h3 $1 {[%emt 0:00:37][%mdl 512]} 29. gxh3 {[%emt 0:00:30] [#]} Be4 $1 {[%emt 0:00:07]} 30. Qa2 {[%emt 0:02:07]} Bd3+ {[%emt 0:00:14]} 31. Ke1 {[%emt 0:00:04]} Qe4 {[%emt 0:00:05]} 32. Qd2 {[%emt 0:00:06] Weighted Error Value: White=0.63/Black=0.16 (very precise) .  Loses game:     	White=1     	---        Mistake:       	White=3     	Black=3      Inaccurate:     	White=1     	Black=1      OK:         	White=5     	Black=9      Best:        	White=2     	Black=2      Strong:       	White=1     	Black=2} 0-1